fUSD/lending_fUSD_20250414
["ID","MTS","AMOUNT","RATE_DAILY","PERIOD"]
[357992208,1744645851652,-215.448265,0.00017895,2]
[357992209,1744645851662,-500.0,0.00017895,2]
[357992210,1744645851671,-500.0,0.00017895,2]
[357992211,1744645851682,-500.0,0.00017895,2]
[357992212,1744645851692,-500.0,0.00017895,2]
[357992213,1744645851702,-500.0,0.00017895,2]
[357992214,1744645851712,-506.97,0.00017895,2]
[357992215,1744645851722,-500.0,0.00017895,2]
[357992216,1744645851732,-500.0,0.00017895,2]
[357992217,1744645851742,-500.0,0.00017895,2]
[357992218,1744645851752,-500.0,0.00017895,2]
[357992219,1744645851762,-500.0,0.00017895,2]
[357992220,1744645851772,-500.0,0.00017895,2]
[357992221,1744645851782,-222.11953054,0.00017895,2]
[357992222,1744645851792,-500.0,0.00017895,2]
[357992223,1744645851803,-500.0,0.00017895,2]
[357992224,1744645851813,-177.46218146,0.00017895,2]
[357992225,1744645851824,-500.0,0.00017895,2]
[357992226,1744645851835,-500.0,0.00017895,2]
[357992227,1744645852018,-500.0,0.00017895,2]
[357992228,1744645852030,-500.0,0.00017895,2]
[357992229,1744645852040,-500.0,0.00017895,2]
[357992230,1744645852050,-500.0,0.00017895,2]
[357992231,1744645852059,-500.0,0.00017895,2]
[357992232,1744645852069,-500.0,0.00017895,2]
[357992233,1744645852079,-500.0,0.00017895,2]
[357992234,1744645852089,-500.0,0.00017895,2]
[357992235,1744645852098,-500.0,0.00017895,2]
[357992236,1744645852108,-500.0,0.00017895,2]
[357992237,1744645852120,-500.0,0.00017895,2]
[357992238,1744645852130,-500.0,0.00017895,2]
[357992239,1744645852140,-500.0,0.00017895,2]
[357992240,1744645852150,-500.0,0.00017895,2]
[357992241,1744645852160,-500.0,0.00017895,2]
[357992242,1744645852170,-500.0,0.00017895,2]
[357992243,1744645852179,-500.0,0.00017895,2]
[357992244,1744645852189,-500.0,0.00017895,2]
[357992245,1744645852198,-2000.0,0.00017895,2]
[357992246,1744645852207,-500.0,0.00017895,2]
[357992247,1744645852217,-500.0,0.00017895,2]
[357992248,1744645852235,-500.0,0.00017895,2]
[357992249,1744645852249,-500.0,0.00017895,2]
[357992250,1744645852260,-1179.21,0.00017895,2]
[357992251,1744645852271,-500.0,0.00017895,2]
[357992252,1744645852281,-500.0,0.00017895,2]
[357992253,1744645852291,-500.0,0.00017895,2]
[357992254,1744645852301,-500.0,0.00017895,2]
[357992255,1744645852311,-500.0,0.00017895,2]
[357992256,1744645852321,-500.0,0.00017895,2]
[357992257,1744645852331,-500.0,0.00017895,2]
[357992258,1744645852342,-173.57200274,0.00017895,2]
[357992259,1744645852352,-500.0,0.00017895,2]
[357992260,1744645852363,-500.0,0.00017895,2]
[357992261,1744645852376,-500.0,0.00017895,2]
[357992262,1744645852386,-500.0,0.00017895,2]
[357992263,1744645852396,-500.0,0.00017895,2]
[357992264,1744645852406,-500.0,0.00017895,2]
[357992265,1744645852416,-500.0,0.00017895,2]
[357992266,1744645852427,-500.0,0.00017895,2]
[357992267,1744645852438,-525.19032362,0.00017895,2]
[357992268,1744645852449,-500.0,0.00017895,2]
[357992269,1744645852459,-500.0,0.00017895,2]
[357992270,1744645852469,-500.0,0.00017895,2]
[357992271,1744645852480,-500.0,0.00017895,2]
[357992272,1744645852495,-500.0,0.00017895,2]
[357992273,1744645852505,-500.0,0.00017895,2]
[357992274,1744645852515,-500.0,0.00017895,2]
[357992275,1744645852525,-500.0,0.00017895,2]
[357992276,1744645852538,-500.0,0.00017895,2]
[357992277,1744645852548,-500.0,0.00017895,2]
[357992278,1744645852559,-514.98488608,0.00017895,2]
[357992279,1744645852571,-323.99928706,0.00017895,2]
[357992280,1744645852581,-500.0,0.00017895,2]
[357992281,1744645852591,-619.27083389,0.00017895,2]
[357992282,1744645852601,-500.0,0.00017895,2]
[357992283,1744645852611,-500.0,0.00017895,2]
[357992284,1744645852625,-500.0,0.00017895,2]
[357992285,1744645852634,-500.0,0.00017895,2]
[357992286,1744645852644,-500.0,0.00017895,2]
[357992287,1744645852654,-500.0,0.00017895,2]
[357992288,1744645852665,-500.0,0.00017895,2]
[357992289,1744645852675,-500.0,0.00017895,2]
[357992290,1744645852685,-500.0,0.00017895,2]
[357992291,1744645852696,-500.0,0.00017895,2]
[357992292,1744645852706,-500.0,0.00017895,2]
[357992293,1744645852716,-500.0,0.00017895,2]
[357992294,1744645852726,-500.0,0.00017895,2]
[357992295,1744645852736,-500.0,0.00017895,2]
[357992296,1744645852746,-500.0,0.00017895,2]
[357992297,1744645852756,-500.0,0.00017895,2]
[357992298,1744645852766,-500.0,0.00017895,2]
[357992299,1744645852776,-500.0,0.00017895,2]
[357992300,1744645852787,-500.0,0.00017895,2]
[357992301,1744645852797,-500.0,0.00017895,2]
[357992302,1744645852807,-500.0,0.00017895,2]
[357992303,1744645852818,-500.0,0.00017895,2]
[357992304,1744645852828,-500.0,0.00017895,2]
[357992305,1744645852839,-500.0,0.00017895,2]
[357992306,1744645852849,-500.0,0.00017895,2]
[357992307,1744645852859,-500.0,0.00017895,2]
[357992308,1744645852870,-500.0,0.00017895,2]
[357992309,1744645852880,-500.0,0.00017895,2]
[357992310,1744645852890,-500.0,0.00017895,2]
[357992311,1744645852900,-500.0,0.00017895,2]
[357992312,1744645852910,-500.0,0.00017895,2]
[357992313,1744645852920,-500.0,0.00017895,2]
[357992314,1744645852930,-500.0,0.00017895,2]
[357992315,1744645852939,-500.0,0.00017895,2]
[357992316,1744645852948,-500.0,0.00017895,2]
[357992317,1744645852958,-500.0,0.00017895,2]
[357992318,1744645852968,-1084.96,0.00017895,2]
[357992319,1744645852978,-500.0,0.00017895,2]
[357992320,1744645852987,-500.0,0.00017895,2]
[357992321,1744645852997,-500.0,0.00017895,2]
[357992322,1744645853007,-500.0,0.00017895,2]
[357992323,1744645853018,-500.0,0.00017895,2]
[357992324,1744645853027,-500.0,0.00017895,2]
[357992325,1744645853037,-500.0,0.00017895,2]
[357992326,1744645853046,-500.0,0.00017895,2]
[357992327,1744645853057,-505.9,0.00017895,2]
[357992328,1744645853067,-500.0,0.00017895,2]
[357992329,1744645853077,-500.0,0.00017895,2]
[357992330,1744645853087,-500.0,0.00017895,2]
[357992331,1744645853099,-500.0,0.00017895,2]
[357992332,1744645853109,-500.0,0.00017895,2]
[357992333,1744645853123,-500.0,0.00017895,2]
[357992334,1744645853133,-500.0,0.00017895,2]
[357992335,1744645853145,-500.0,0.00017895,2]
[357992336,1744645853157,-500.0,0.00017895,2]
[357992337,1744645853167,-500.0,0.00017895,2]
[357992338,1744645853178,-500.0,0.00017895,2]
[357992339,1744645853188,-2114.28,0.00017895,2]
[357992340,1744645853197,-500.0,0.00017895,2]
[357992341,1744645853209,-972.62,0.00017895,2]
[357992342,1744645853218,-214.26200377,0.00017895,2]
[357992343,1744645853229,-500.0,0.00017895,2]
[357992344,1744645853239,-500.0,0.00017895,2]
[357992345,1744645853250,-202.05610177,0.00017895,2]
[357992346,1744645853260,-1242.69,0.00017895,2]
[357992347,1744645853270,-500.0,0.00017895,2]
[357992348,1744645853279,-802.2,0.00017895,2]
[357992349,1744645853289,-500.0,0.00017895,2]
[357992350,1744645853299,-500.0,0.00017895,2]
[357992351,1744645853309,-500.0,0.00017895,2]
[357992352,1744645853319,-500.0,0.00017895,2]
[357992353,1744645853330,-500.0,0.00017895,2]
[357992354,1744645853339,-198.0116463,0.00017895,2]
[357992355,1744645853349,-597.24,0.00017895,2]
[357992356,1744645853359,-520.42350806,0.00017895,2]
[357992357,1744645853371,-500.0,0.00017895,2]
[357992358,1744645853380,-500.0,0.00017895,2]
[357992359,1744645853390,-500.0,0.00017895,2]
[357992360,1744645853400,-500.0,0.00017895,2]
[357992361,1744645853409,-511.4373419,0.00017895,2]
[357992362,1744645853419,-500.0,0.00017895,2]
[357992363,1744645853428,-521.06196211,0.00017895,2]
[357992364,1744645853437,-500.0,0.00017895,2]
[357992365,1744645853447,-500.0,0.00017895,2]
[357992366,1744645853456,-150.0,0.00017895,2]
[357992367,1744645853467,-500.0,0.00017895,2]
[357992368,1744645853481,-500.0,0.00017895,2]
[357992369,1744645853491,-544.7,0.00017895,2]
[357992370,1744645853500,-500.0,0.00017895,2]
[357992371,1744645853510,-5000.0,0.00017895,2]
[357992372,1744645853520,-500.0,0.00017895,2]
[357992373,1744645853536,-500.0,0.00017895,2]
[357992374,1744645853548,-500.0,0.00017895,2]
[357992375,1744645853560,-500.0,0.00017895,2]
[357992376,1744645853570,-518.155593,0.00017895,2]
[357992377,1744645853580,-500.0,0.00017895,2]
[357992378,1744645853589,-500.0,0.00017895,2]
[357992379,1744645853599,-500.0,0.00017895,2]
[357992380,1744645853609,-500.0,0.00017895,2]
[357992381,1744645853622,-543.7,0.00017895,2]
[357992382,1744645853632,-500.0,0.00017895,2]
[357992383,1744645853642,-589.74,0.00017895,2]
[357992384,1744645853652,-619.79,0.00017895,2]
[357992385,1744645853662,-527.0089416,0.00017895,2]
[357992386,1744645853671,-500.0,0.00017895,2]
[357992387,1744645853680,-527.09,0.00017895,2]
[357992388,1744645853690,-500.0,0.00017895,2]
[357992389,1744645853700,-514.43106375,0.00017895,2]
[357992390,1744645853710,-529.02357208,0.00017895,2]
[357992391,1744645853719,-500.0,0.00017895,2]
[357992392,1744645853730,-550.98,0.00017895,2]
[357992393,1744645853739,-500.0,0.00017895,2]
[357992394,1744645853749,-500.0,0.00017895,2]
[357992395,1744645853759,-1037.56,0.00017895,2]
[357992396,1744645853769,-500.0,0.00017895,2]
[357992397,1744645853783,-170.75469202,0.00017896,2]
[357992398,1744645853793,-887.9,0.00017897,2]
[357992399,1744645853803,-500.0,0.00017897,2]
[357992400,1744645853813,-500.0,0.00017897,2]
[357992401,1744645853823,-500.0,0.00017897,2]
[357992402,1744645853832,-500.0,0.00017897,2]
[357992403,1744645853842,-500.0,0.00017897,2]
[357992404,1744645853852,-500.0,0.00017897,2]
[357992405,1744645853862,-500.0,0.00017897,2]
[357992406,1744645853874,-405.92569286,0.00017897,2]
[357992407,1744645853884,-500.0,0.00017897,2]
[357992408,1744645853894,-500.0,0.00017897,2]
[357992409,1744645853905,-500.0,0.00017897,2]
[357992410,1744645853914,-500.0,0.00017897,2]
[357992411,1744645853925,-500.0,0.00017897,2]
[357992412,1744645853935,-559.05,0.00017897,2]
[357992413,1744645853944,-500.0,0.00017897,2]
[357992414,1744645853954,-500.0,0.00017897,2]
[357992415,1744645853965,-500.0,0.00017897,2]
[357992416,1744645853975,-500.0,0.00017897,2]
[357992417,1744645853984,-969.36,0.00017897,2]
[357992418,1744645853994,-500.0,0.00017897,2]
[357992419,1744645854003,-644.82663287,0.00017897,2]
[357992420,1744645854014,-500.0,0.00017897,2]
[357992421,1744645854023,-500.0,0.00017897,2]
[357992422,1744645854032,-719.02,0.00017897,2]
[357992423,1744645854041,-500.0,0.00017897,2]
[357992424,1744645854051,-500.0,0.00017897,2]
[357992425,1744645854060,-500.0,0.00017897,2]
[357992426,1744645854070,-500.0,0.00017897,2]
[357992427,1744645854080,-500.0,0.00017897,2]
[357992428,1744645854089,-500.0,0.00017897,2]
[357992429,1744645854099,-500.0,0.00017897,2]
[357992430,1744645854109,-500.0,0.00017897,2]
[357992431,1744645854120,-539.76967029,0.00017897,2]
[357992432,1744645854130,-500.0,0.00017897,2]
[357992433,1744645854140,-1101.31,0.00017897,2]
[357992434,1744645854149,-500.0,0.00017897,2]
[357992435,1744645854159,-500.0,0.00017897,2]
[357992436,1744645854170,-500.0,0.00017897,2]
[357992437,1744645854181,-500.0,0.00017897,2]
[357992438,1744645854191,-500.0,0.00017897,2]
[357992439,1744645854201,-614.0917312,0.00017897,2]
[357992440,1744645854212,-500.0,0.00017897,2]
[357992441,1744645854222,-500.0,0.00017897,2]
[357992442,1744645854233,-500.0,0.00017897,2]
[357992443,1744645854243,-500.0,0.00017897,2]
[357992444,1744645854253,-500.0,0.00017897,2]
[357992445,1744645854263,-500.0,0.00017897,2]
[357992446,1744645854273,-500.0,0.00017897,2]
[357992447,1744645854284,-500.0,0.00017897,2]
[357992448,1744645854295,-500.0,0.00017897,2]
[357992449,1744645854305,-500.0,0.00017897,2]
[357992450,1744645854315,-500.0,0.00017897,2]
[357992451,1744645854325,-500.0,0.00017897,2]
[357992452,1744645854335,-500.0,0.00017897,2]
[357992453,1744645854345,-500.0,0.00017897,2]
[357992454,1744645854355,-1032.39,0.00017897,2]
[357992455,1744645854364,-500.0,0.00017897,2]
[357992456,1744645854378,-500.0,0.00017897,2]
[357992457,1744645854389,-500.0,0.00017897,2]
[357992458,1744645854399,-285.50999775,0.00017897,2]
[357992459,1744645854410,-510.28,0.00017897,2]
[357992460,1744645854421,-500.0,0.00017897,2]
[357992461,1744645854431,-558.67963929,0.00017897,2]
[357992462,1744645854441,-650.89,0.00017897,2]
[357992463,1744645854452,-294.14743454,0.00017897,2]
[357992464,1744645854462,-711.53,0.00017897,2]
[357992465,1744645854473,-500.0,0.00017897,2]
[357992466,1744645854486,-500.0,0.00017897,2]
[357992467,1744645854495,-1312.94,0.00017897,2]
[357992468,1744645854505,-500.0,0.00017897,2]
[357992469,1744645854515,-500.0,0.00017897,2]
[357992470,1744645854526,-400.24657426,0.00017897,2]
[357992471,1744645854536,-500.0,0.00017897,2]
[357992472,1744645854546,-500.0,0.00017897,2]
[357992473,1744645854556,-588.52059654,0.00017897,2]
[357992474,1744645854570,-1121.06,0.00017897,2]
[357992475,1744645854580,-500.0,0.00017897,2]
[357992476,1744645854589,-560.16,0.00017897,2]
[357992477,1744645854599,-500.0,0.00017897,2]
[357992478,1744645854609,-500.0,0.00017897,2]
[357992479,1744645854619,-500.0,0.00017897,2]
[357992480,1744645854629,-942.09,0.00017897,2]
[357992481,1744645854640,-500.0,0.00017897,2]
[357992482,1744645854649,-500.0,0.00017897,2]
[357992483,1744645854659,-541.7593039,0.00017897,2]
[357992484,1744645854668,-500.0,0.00017897,2]
[357992485,1744645854678,-465.55263059,0.00017897,2]
[357992486,1744645854687,-500.0,0.00017897,2]
[357992487,1744645854697,-500.0,0.00017897,2]
[357992488,1744645854706,-530.5320336,0.00017897,2]
[357992489,1744645854716,-500.0,0.00017897,2]
[357992490,1744645854726,-161.36703741,0.00017897,2]
[357992491,1744645854736,-500.0,0.00017897,2]
[357992492,1744645854747,-500.0,0.00017897,2]
[357992493,1744645854757,-500.0,0.00017897,2]
[357992494,1744645854766,-518.96173171,0.00017897,2]
[357992495,1744645854776,-500.0,0.00017897,2]
[357992496,1744645854785,-500.0,0.00017897,2]
[357992497,1744645854795,-153.10079272,0.00017897,2]
[357992498,1744645854805,-225.57706412,0.00017897,2]
[357992499,1744645854815,-395.5951276,0.00017897,2]
[357992500,1744645854825,-500.0,0.00017897,2]
[357992501,1744645854835,-500.0,0.00017897,2]
[357992502,1744645854845,-500.0,0.00017897,2]
[357992503,1744645854855,-1799.41,0.00017897,2]
[357992504,1744645854865,-199.7853455,0.00017897,2]
[357992505,1744645854877,-504.8676897,0.00017897,2]
[357992506,1744645854887,-500.0,0.00017897,2]
[357992507,1744645854897,-500.0,0.00017897,2]
[357992508,1744645854907,-500.0,0.00017897,2]
[357992509,1744645854917,-500.0,0.00017897,2]
[357992510,1744645854926,-500.0,0.00017897,2]
[357992511,1744645854937,-500.0,0.00017897,2]
[357992512,1744645854947,-569.54958801,0.00017897,2]
[357992513,1744645854957,-500.0,0.00017897,2]
[357992514,1744645854967,-630.82,0.00017897,2]
[357992515,1744645854978,-500.0,0.00017897,2]
[357992516,1744645854988,-500.0,0.00017897,2]
[357992517,1744645854998,-515.17956097,0.00017897,2]
[357992518,1744645855010,-500.0,0.00017897,2]
[357992519,1744645855020,-500.0,0.00017897,2]
[357992520,1744645855031,-635.75,0.00017897,2]
[357992521,1744645855041,-610.42889467,0.00017897,2]
[357992522,1744645855051,-500.0,0.00017897,2]
[357992523,1744645855062,-500.0,0.00017897,2]
[357992524,1744645855072,-410.49668287,0.00017897,2]
[357992525,1744645855082,-500.0,0.00017897,2]
[357992526,1744645855092,-500.0,0.00017897,2]
[357992527,1744645855103,-500.0,0.00017897,2]
[357992528,1744645855113,-688.73,0.00017897,2]
[357992529,1744645855125,-500.0,0.00017897,2]
[357992530,1744645855135,-500.0,0.00017897,2]
[357992531,1744645855145,-500.0,0.00017897,2]
[357992532,1744645855155,-500.0,0.00017897,2]
[357992533,1744645855165,-500.0,0.00017897,2]
[357992534,1744645855175,-601.74,0.00017897,2]
[357992535,1744645855185,-500.0,0.00017897,2]
[357992536,1744645855195,-500.0,0.00017897,2]
[357992537,1744645855206,-848.39,0.00017897,2]
[357992538,1744645855216,-993.08,0.00017897,2]
[357992539,1744645855226,-797.17,0.00017897,2]
[357992540,1744645855235,-295.93970999,0.00017897,2]
[357992541,1744645855246,-500.0,0.00017897,2]
[357992542,1744645855255,-600.28,0.00017897,2]
[357992543,1744645855488,-500.0,0.00017897,2]
[357992544,1744645855499,-14095.06,0.00017897,2]
[357992545,1744645855510,-500.0,0.00017897,2]
[357992546,1744645855519,-500.0,0.00017897,2]
[357992547,1744645855530,-199.73971141,0.00017897,2]
[357992548,1744645855540,-1480.98,0.00017897,2]
[357992549,1744645855549,-10498.08967964,0.00017897,2]
[357992550,1744645855561,-500.0,0.00017897,2]
[357992551,1744645855571,-500.0,0.00017897,2]
[357992552,1744645855580,-500.0,0.00017897,2]
[357992553,1744645855590,-531.95,0.00017897,2]
[357992554,1744645855600,-500.0,0.00017897,2]
[357992555,1744645855609,-302.73317113,0.00017897,2]
[357992556,1744645855619,-500.0,0.00017897,2]
[357992557,1744645855629,-500.0,0.00017897,2]
[357992558,1744645855638,-500.0,0.00017897,2]
[357992559,1744645855648,-3814.19,0.00017897,2]
[357992560,1744645855657,-521.81,0.00017897,2]
[357992561,1744645855668,-4483.7,0.00017897,2]
[357992562,1744645855678,-500.0,0.00017897,2]
[357992563,1744645855688,-500.0,0.00017897,2]
[357992564,1744645855698,-500.0,0.00017897,2]
[357992565,1744645855708,-602.55,0.00017897,2]
[357992566,1744645855718,-2349.0,0.00017898,2]
[357992567,1744645855728,-500.0,0.00017898,2]
[357992568,1744645855737,-500.0,0.00017898,2]
[357992569,1744645855747,-526.90123182,0.00017898,2]
[357992570,1744645855757,-500.0,0.00017898,2]
[357992571,1744645855766,-500.0,0.00017898,2]
[357992572,1744645855776,-500.0,0.00017898,2]
[357992573,1744645855786,-500.0,0.00017898,2]
[357992574,1744645855796,-500.0,0.00017898,2]
[357992575,1744645855806,-500.0,0.00017898,2]
[357992576,1744645855816,-500.0,0.00017898,2]
[357992577,1744645855825,-500.0,0.00017898,2]
[357992578,1744645855835,-500.0,0.00017898,2]
[357992579,1744645855845,-500.0,0.00017898,2]
[357992580,1744645855854,-500.0,0.00017898,2]
[357992581,1744645855864,-500.0,0.00017898,2]
[357992582,1744645855876,-500.0,0.00017898,2]
[357992583,1744645855886,-500.0,0.00017898,2]
[357992584,1744645855896,-500.0,0.00017898,2]
[357992585,1744645855906,-500.0,0.00017898,2]
[357992586,1744645855917,-500.0,0.00017898,2]
[357992587,1744645855927,-269.04963611,0.00017898,2]
[357992588,1744645855938,-500.0,0.00017898,2]
[357992589,1744645855948,-500.0,0.00017898,2]
[357992590,1744645855958,-500.0,0.00017898,2]
[357992591,1744645855968,-500.0,0.00017898,2]
[357992592,1744645855978,-500.0,0.00017898,2]
[357992593,1744645855987,-500.0,0.00017898,2]
[357992594,1744645855998,-500.0,0.00017898,2]
[357992595,1744645856008,-500.0,0.00017898,2]
[357992596,1744645856018,-361.33283906,0.00017898,2]
[357992597,1744645856028,-500.0,0.00017898,2]
[357992598,1744645856037,-500.0,0.00017898,2]
[357992599,1744645856047,-500.0,0.00017898,2]
[357992600,1744645856056,-500.0,0.00017898,2]
[357992601,1744645856066,-300.0,0.00017898,2]
[357992602,1744645856076,-500.0,0.00017898,2]
[357992603,1744645856086,-500.0,0.00017898,2]
[357992604,1744645856096,-500.0,0.00017898,2]
[357992605,1744645856105,-500.0,0.00017898,2]
[357992606,1744645856115,-500.0,0.00017898,2]
[357992607,1744645856126,-500.0,0.00017898,2]
[357992608,1744645856136,-500.0,0.00017898,2]
[357992609,1744645856146,-500.0,0.00017898,2]
[357992610,1744645856156,-500.0,0.00017898,2]
[357992611,1744645856166,-500.0,0.00017899,2]
[357992612,1744645856177,-614.13120668,0.00017899,2]
[357992613,1744645856186,-500.0,0.00017899,2]
[357992614,1744645856196,-515.35735234,0.00017899,2]
[357992615,1744645856205,-500.0,0.00017899,2]
[357992616,1744645856214,-500.0,0.00017899,2]
[357992617,1744645856224,-500.0,0.00017899,2]
[357992618,1744645856233,-500.0,0.00017899,2]
[357992619,1744645856241,-528.41,0.00017899,2]
[357992620,1744645856250,-500.0,0.00017899,2]
[357992621,1744645856259,-500.0,0.00017899,2]
[357992622,1744645856268,-500.0,0.00017899,2]
[357992623,1744645856277,-500.0,0.00017899,2]
[357992624,1744645856286,-1451.47,0.00017899,2]
[357992625,1744645856295,-500.0,0.00017899,2]
[357992626,1744645856304,-500.0,0.00017899,2]
[357992627,1744645856313,-500.0,0.00017899,2]
[357992628,1744645856322,-575.91,0.00017899,2]
[357992629,1744645856331,-500.0,0.00017899,2]
[357992630,1744645856339,-500.0,0.00017899,2]
[357992631,1744645856348,-723.43,0.00017899,2]
[357992632,1744645856357,-579.56,0.00017899,2]
[357992633,1744645856366,-1074.66,0.00017899,2]
[357992634,1744645856377,-500.0,0.00017899,2]
[357992635,1744645856387,-1435.33,0.00017899,2]
[357992636,1744645856397,-500.0,0.00017899,2]
[357992637,1744645856407,-500.0,0.00017899,2]
[357992638,1744645856417,-581.58,0.00017899,2]
[357992639,1744645856426,-517.16,0.00017899,2]
[357992640,1744645856436,-500.0,0.00017899,2]
[357992641,1744645856446,-500.0,0.00017899,2]
[357992642,1744645856456,-500.0,0.00017899,2]
[357992643,1744645856466,-11174.25201968,0.000179,2]
[357992644,1744645856475,-374.74549397,0.000179,2]
[357992645,1744645856489,-1000.0,0.000179,2]
[357992646,1744645856498,-170.75469202,0.000179,2]
[357992647,1744645856508,-10498.08967964,0.000179,2]
[357992648,1744645856518,-2165.47640639,0.000179,2]
[357992649,1744645856530,-578.81599954,0.00017973,2]
[357992650,1744645856540,-538.77045901,0.00017973,2]
[357992651,1744645856550,-501.75534864,0.00017973,2]
[357992652,1744645856559,-323.6451562,0.00017973,2]
[357992653,1744645856570,-504.0037658,0.00017973,2]
[357992654,1744645856580,-500.0,0.00017973,2]
[357992655,1744645856590,-500.0,0.00017973,2]
[357992656,1744645856599,-500.0,0.00017973,2]
[357992657,1744645856609,-159.63866716,0.00017973,2]
[357992658,1744645856620,-159.63337303,0.00017973,2]
[357992659,1744645856629,-159.62727063,0.00017973,2]
[357992660,1744645856638,-500.0,0.00017973,2]
[357992661,1744645856653,-212.24737235,0.0001798,2]
[357992662,1744645856662,-261.75,0.0001798,2]
[357992663,1744645856672,-500.0,0.0001798,2]
[357992664,1744645856682,-500.0,0.0001798,2]
[357992665,1744645856691,-500.0,0.0001798,2]
[357992666,1744645856700,-500.0,0.0001798,2]
[357992667,1744645856710,-500.0,0.0001798,2]
[357992668,1744645856720,-916.81,0.0001798,2]
[357992669,1744645856729,-500.0,0.0001798,2]
[357992670,1744645856739,-500.0,0.0001798,2]
[357992671,1744645856749,-179.39370182,0.0001798,2]
[357992672,1744645856759,-500.0,0.0001798,2]
[357992673,1744645856768,-3221.67,0.0001798,2]
[357992674,1744645856777,-500.0,0.0001798,2]
[357992675,1744645856787,-500.0,0.0001798,2]
[357992676,1744645856797,-500.0,0.0001798,2]
[357992677,1744645856807,-86751.9105944,0.00017981,2]
[357992678,1744645856816,-165.46,0.00017981,2]
[357992679,1744645856826,-500.0,0.00017981,2]
[357992680,1744645856836,-490.47131016,0.00017981,2]
[357992681,1744645856846,-500.0,0.00017981,2]
[357992682,1744645856856,-550.98087176,0.00017981,2]
[357992683,1744645856866,-221.06,0.00017981,2]
[357992684,1744645856880,-500.0,0.00017981,2]
[357992685,1744645856890,-500.0,0.00017981,2]
[357992686,1744645856900,-500.0,0.00017981,2]
[357992687,1744645856910,-500.0,0.00017981,2]
[357992688,1744645856920,-500.0,0.00017981,2]
[357992689,1744645856930,-384.55562359,0.00017981,2]
[357992690,1744645856940,-559.62,0.00017981,2]
[357992691,1744645856950,-500.0,0.00017981,2]
[357992692,1744645856960,-346.18894342,0.00017981,2]
[357992693,1744645856971,-500.0,0.00017981,2]
[357992694,1744645856980,-500.0,0.00017981,2]
[357992695,1744645856992,-500.0,0.00017981,2]
[357992696,1744645857001,-573.07,0.00017981,2]
[357992697,1744645857011,-500.0,0.00017981,2]
[357992698,1744645857020,-688.73,0.00017981,2]
[357992699,1744645857030,-500.0,0.00017981,2]
[357992700,1744645857040,-500.0,0.00017981,2]
[357992701,1744645857050,-516.54832499,0.00017981,2]
[357992702,1744645857060,-563.05,0.00017981,2]
[357992703,1744645857070,-500.0,0.00017981,2]
[357992704,1744645857080,-848.39,0.00017981,2]
[357992705,1744645857089,-797.17,0.00017981,2]
[357992706,1744645857099,-500.0,0.00017981,2]
[357992707,1744645857109,-500.0,0.00017981,2]